bitfinex/quotes_ETHUSD_20250903
["timestamp","ask_amount","ask_price","bid_price","bid_amount"]
[1756863449642,6.29501769,4295.5,4295.4,1.2439]
[1756863449842,2.32807189,4295.4,4295.3,0.004]
[1756863450039,13.49152215,4295.4,4295.3,0.004]
[1756863450242,13.7776851,4295.4,4295.3,0.004]
[1756863450644,13.38805278,4295.4,4295.3,0.004]
[1756863455683,11.52676162,4295.4,4295.3,0.004]
[1756863456187,11.52676162,4295.4,4295.3,0.2987]
[1756863457095,11.52676162,4295.4,4295.3,0.004]
[1756863458157,5.44487189,4295.4,4295.3,0.004]
[1756863458784,11.83706162,4295.4,4295.3,0.004]
[1756863460052,11.52776162,4295.4,4295.3,0.2987]
[1756863460249,5.75517189,4295.4,4295.3,0.004]
[1756863461053,5.44587189,4295.4,4295.3,0.004]
[1756863462212,5.75517189,4295.4,4295.3,0.004]
[1756863462392,14.05583955,4295.4,4295.3,0.004]
[1756863462683,7.22814982,4295.4,4295.3,0.2987]
[1756863462900,11.18614982,4295.4,4295.3,0.2987]
[1756863463067,11.18614982,4295.4,4295.3,0.004]
[1756863463405,11.49544982,4295.4,4295.3,0.004]
[1756863463587,12.78468214,4295.4,4295.3,0.004]
[1756863463883,12.39504982,4295.4,4295.3,0.004]
[1756863465088,11.49544982,4295.4,4295.3,0.004]
[1756863465900,11.93194982,4295.4,4295.3,0.004]
[1756863466793,12.78468214,4295.4,4295.3,0.004]
[1756863466979,13.151518,4295.4,4295.3,0.004]
[1756863467973,12.32158214,4295.4,4295.3,0.004]
[1756863468364,11.18314982,4295.4,4295.3,0.004]
[1756863468897,11.49244982,4295.4,4295.3,0.004]
[1756863469282,11.92894982,4295.4,4295.3,0.004]
[1756863469597,11.92894982,4295.4,4295.3,0.2987]
[1756863469598,11.18314982,4295.4,4295.3,0.2987]
[1756863469894,9.39987189,4295.4,4295.3,0.7826]
[1756863470275,9.39987189,4295.4,4295.3,0.2987]
[1756863471193,9.70917189,4295.4,4295.3,0.004]
[1756863471401,10.53530421,4295.4,4295.3,0.004]
[1756863471564,10.99840421,4295.4,4295.3,0.004]
[1756863471765,12.97591896,4295.4,4295.3,0.004]
[1756863472497,12.51281896,4295.4,4295.3,0.004]
[1756863472993,12.07531896,4295.4,4295.3,0.004]
[1756863473606,11.76501896,4295.4,4295.3,0.004]
[1756863473808,11.37538664,4295.4,4295.3,0.004]
[1756863474209,7.42338664,4295.4,4295.3,0.7826]
[1756863474520,9.39787189,4295.4,4295.3,0.7826]
[1756863475489,5.44587189,4295.4,4295.3,0.7826]
[1756863475727,5.44587189,4295.4,4295.3,1.2479]
[1756863475728,0.001,4295.4,4295.3,1.2479]
[1756863479719,3.95,4295.4,4295.3,1.2479]
[1756863481015,0.001,4295.4,4295.3,1.2479]
[1756863481729,3.948,4295.4,4295.3,0.2987]
[1756863482095,6.27607189,4295.4,4295.3,0.2987]
[1756863482926,3.948,4295.4,4295.3,0.2987]
[1756863483415,6.27607189,4295.4,4295.3,0.2987]
[1756863483615,3.948,4295.4,4295.3,0.2987]
[1756863484019,0.001,4295.4,4295.3,1.2616]
[1756863484219,0.001,4295.8,4295.4,2.32807189]
[1756863484538,0.001,4296.3,4296.2,2.32763837]
[1756863484820,0.001,4296.3,4296.2,2.62633837]
[1756863484989,0.001,4296.3,4296.2,2.74233837]
[1756863485190,0.001,4296.3,4296.2,3.70523837]
[1756863485420,0.001,4296.3,4296.2,4.30854011]
[1756863486631,0.001,4296.3,4296.2,12.55074266]
[1756863486930,0.001,4296.3,4296.2,8.10054011]
[1756863487489,0.001,4296.3,4296.2,1.51420174]
[1756863487689,0.2987,4296.3,4296.2,0.116]
[1756863488039,3.01591652,4296.3,4296.2,0.116]
[1756863488392,2.32771661,4296.1,4295.7,0.116]
[1756863488887,2.32764145,4296.2,4295.7,0.116]
[1756863489093,2.32776032,4296.0,4295.7,0.116]
[1756863489518,2.35089737,4296.0,4295.7,0.116]
[1756863489732,2.32859323,4296.3,4295.7,0.116]
[1756863489733,0.001,4296.3,4295.7,0.116]
[1756863489925,0.001,4296.3,4295.9,0.2987]
[1756863490093,0.001,4296.3,4296.1,0.116]
[1756863490609,3.07723837,4296.2,4296.1,0.116]
[1756863490799,2.32770066,4296.1,4295.4,0.4962]
[1756863491007,2.32775318,4296.0,4295.6,0.116]
[1756863491322,2.89559041,4296.2,4295.6,0.116]
[1756863491713,0.116,4296.2,4295.6,0.116]
[1756863491916,0.2977,4295.7,4295.6,0.116]
[1756863492626,2.6256093,4295.7,4295.6,0.116]
[1756863493019,0.2977,4295.7,4295.6,0.116]
[1756863494516,0.2977,4295.7,4295.3,0.004]
[1756863494695,3.07755702,4295.7,4295.4,0.1168]
[1756863495801,2.62565702,4295.7,4295.4,0.1168]
[1756863495994,0.4519,4295.6,4295.3,0.004]
[1756863496200,2.32807189,4295.4,4295.3,0.004]
[1756863496427,2.62577189,4295.4,4295.3,0.004]
[1756863496629,7.52440894,4295.4,4295.3,0.004]
[1756863496816,2.74257189,4295.4,4295.3,0.004]
[1756863497022,6.68957189,4295.4,4295.3,0.004]
[1756863497795,0.4145,4295.4,4295.3,0.004]
[1756863498024,4.0638,4295.4,4295.3,0.004]
[1756863498224,6.68957189,4295.4,4295.3,0.004]
[1756863499634,7.89588455,4295.4,4295.3,0.004]
[1756863499831,6.96738455,4295.4,4295.3,0.004]
[1756863500036,4.3615,4295.4,4295.3,0.004]
[1756863501425,6.68957189,4295.4,4295.3,0.004]
[1756863502443,7.14147189,4295.4,4295.3,0.004]
[1756863503116,6.68957189,4295.4,4295.3,0.004]
[1756863503503,2.74257189,4295.4,4295.3,0.004]
[1756863503702,7.23881375,4295.4,4295.3,0.004]
[1756863504030,8.92378193,4295.4,4295.3,0.004]
[1756863504217,12.03954132,4295.4,4295.3,0.004]
[1756863505008,11.92378193,4295.4,4295.3,0.004]
[1756863505341,12.04119038,4295.4,4295.3,0.004]
[1756863506007,11.92378193,4295.4,4295.3,0.004]
[1756863506434,12.04079074,4295.4,4295.3,0.004]
[1756863506940,11.92378193,4295.4,4295.3,0.004]
[1756863507152,12.04060492,4295.4,4295.3,0.004]
[1756863508840,11.92378193,4295.4,4295.3,0.004]
[1756863515975,11.08034607,4295.4,4295.3,0.004]
[1756863517439,7.13634607,4295.4,4295.3,0.004]
[1756863517761,11.08134607,4295.4,4295.3,0.004]
[1756863518253,12.72234607,4295.4,4295.3,0.004]
[1756863519545,12.27044607,4295.4,4295.3,0.004]
[1756863520240,12.73874607,4295.4,4295.3,0.004]
[1756863520435,11.88081375,4295.4,4295.3,0.004]
[1756863520755,12.34911375,4295.4,4295.3,0.004]
[1756863522139,11.88081375,4295.4,4295.3,0.004]
[1756863522351,12.34911375,4295.4,4295.3,0.004]
[1756863523453,6.96907189,4295.4,4295.3,0.3092]
[1756863523662,5.586,4295.4,4295.3,1.2574]
[1756863524069,7.91407189,4295.4,4295.3,1.2574]
[1756863525158,3.96907189,4295.4,4295.3,1.2574]
[1756863525476,7.91307189,4295.4,4295.3,1.2574]
[1756863525680,7.91307189,4295.4,4295.3,0.7945]
[1756863525845,5.12490421,4295.4,4295.3,0.004]
[1756863526059,17.61963441,4295.4,4295.3,0.004]
[1756863526956,12.90943441,4295.4,4295.3,0.004]
[1756863527154,8.30270421,4295.4,4295.3,0.7945]
[1756863527396,4.35870421,4295.4,4295.3,0.7945]
[1756863527565,8.30270421,4295.4,4295.3,0.3092]
[1756863528068,8.60060421,4295.4,4295.3,0.004]
[1756863528267,16.02753038,4295.4,4295.3,0.004]
[1756863528463,22.20199703,4295.4,4295.3,0.004]
[1756863529865,21.70989703,4295.4,4295.3,0.004]
[1756863531998,22.20199703,4295.4,4295.3,0.004]
[1756863532307,2.32818029,4295.2,4295.1,0.004]
[1756863532487,10.42692617,4295.0,4294.9,0.004]
[1756863532797,17.87038305,4295.0,4294.9,0.004]
[1756863532989,19.13068305,4295.0,4294.9,0.004]
[1756863533296,19.71613075,4295.0,4294.9,0.004]
[1756863533607,21.98403872,4295.0,4294.9,0.004]
[1756863535116,21.49193872,4295.0,4294.9,0.004]
[1756863539211,21.39859102,4295.0,4294.9,0.004]
[1756863540278,20.13829102,4295.0,4294.9,0.004]
[1756863540594,19.08392284,4295.0,4294.9,0.2918]
[1756863540777,19.08392284,4295.0,4294.9,0.004]
[1756863541109,19.76225516,4295.0,4294.9,0.004]
[1756863541310,20.21615516,4295.0,4294.9,0.004]
[1756863542011,16.27215516,4295.0,4294.9,0.004]
[1756863542211,19.76225516,4295.0,4294.9,0.004]
[1756863544285,20.21615516,4295.0,4294.9,0.004]
[1756863545911,18.41983009,4295.0,4294.9,0.004]
[1756863547018,18.87373009,4295.0,4294.9,0.004]
[1756863547205,19.24056595,4295.0,4294.9,0.004]
[1756863547409,19.73246595,4295.0,4294.9,0.004]
[1756863547614,2.32839713,4294.8,4294.4,0.004]
[1756863547904,7.05200236,4294.8,4294.4,0.004]
[1756863548114,7.77146531,4294.8,4294.4,0.004]
[1756863548698,7.31756531,4294.8,4294.4,0.004]
[1756863548932,11.41306088,4294.5,4294.4,0.004]
[1756863549131,17.5044932,4294.5,4294.4,0.004]
[1756863550022,17.5044932,4294.5,4294.4,0.2918]
[1756863550023,17.11486088,4294.5,4294.4,0.2918]
[1756863550224,13.17086088,4294.5,4294.4,0.2918]
[1756863550535,17.11486088,4294.5,4294.4,0.2918]
[1756863550726,19.28598565,4294.5,4294.4,0.2918]
[1756863551629,19.28598565,4294.5,4294.4,0.004]
[1756863551937,19.57468565,4294.5,4294.4,0.004]
[1756863552544,20.02858565,4294.5,4294.4,0.004]
[1756863555148,20.02858565,4294.5,4294.0,1e-08]
[1756863555149,3.12077669,4294.1,4294.0,1e-08]
[1756863555313,16.63393049,4294.1,4294.0,1e-08]
[1756863555643,17.50057779,4294.1,4294.0,1e-08]
[1756863556426,17.00867779,4294.1,4294.0,1e-08]
[1756863556810,17.1853466,4294.1,4294.0,1e-08]
[1756863557009,14.17419051,4294.1,4294.0,1e-08]
[1756863557249,18.11819051,4294.1,4294.0,1e-08]
[1756863559415,18.11919051,4294.1,4294.0,1e-08]
[1756863560570,18.11919051,4294.1,4294.0,0.28780001]
[1756863560571,13.2559217,4294.1,4294.0,0.28780001]
[1756863560849,17.1999217,4294.1,4294.0,0.28780001]
[1756863561050,6.3794206,4294.1,4294.0,0.74590001]
[1756863561220,15.47507779,4294.1,4294.0,1.18670001]
[1756863561916,15.47507779,4294.1,4294.0,0.74590001]
[1756863562849,15.47507779,4294.1,4294.0,1.18670001]
[1756863563040,11.53107779,4294.1,4294.0,1.18670001]
[1756863563235,15.47507779,4294.1,4294.0,1.18670001]
[1756863565132,15.47507779,4294.1,4294.0,1e-08]
[1756863565438,15.47507779,4294.1,4294.0,0.28780001]
[1756863565843,15.47507779,4294.1,4294.0,0.74590001]
[1756863567936,9.39057669,4294.1,4294.0,1.18670001]
[1756863568741,9.39057669,4294.1,4294.0,0.74590001]
[1756863569054,9.39057669,4294.1,4294.0,1.18670001]
[1756863569249,9.39057669,4294.1,4294.0,0.74590001]
[1756863569458,9.39057669,4294.1,4294.0,0.28780001]
[1756863570662,9.69617669,4294.1,4294.0,1e-08]
[1756863570952,11.53152313,4294.1,4294.0,1e-08]
[1756863571253,11.07722313,4294.1,4294.0,1e-08]
[1756863571429,10.77162313,4294.1,4294.0,1e-08]
[1756863572362,6.82762313,4294.1,4294.0,0.29790001]
[1756863572520,9.38957669,4294.1,4294.0,0.77290001]
[1756863572721,9.38957669,4294.1,4294.0,1e-08]
[1756863573353,5.44657669,4294.1,4294.0,1e-08]
[1756863573650,9.38957669,4294.1,4294.0,1e-08]
[1756863574115,9.69517669,4294.1,4294.0,1e-08]
[1756863574315,12.62953198,4294.1,4294.0,1e-08]
[1756863576563,12.30502945,4294.1,4294.0,1e-08]
[1756863576734,13.91493198,4294.1,4294.0,1e-08]
[1756863576932,13.09702945,4294.1,4294.0,1e-08]
[1756863577125,12.2980138,4294.1,4294.0,1e-08]
[1756863578366,11.0836138,4294.1,4294.0,0.29790001]
[1756863578859,11.0836138,4294.1,4294.0,1e-08]
[1756863579036,12.62953198,4294.1,4294.0,1e-08]
[1756863579359,19.18153055,4294.1,4294.0,1e-08]
[1756863579653,18.72723055,4294.1,4294.0,1e-08]
[1756863579952,17.4737149,4294.1,4294.0,1e-08]
[1756863580152,17.2849149,4294.1,4294.0,1e-08]
[1756863580357,17.2839149,4294.1,4294.0,1e-08]
[1756863580559,13.6475149,4294.1,4294.0,1e-08]
[1756863580765,17.5895149,4294.1,4294.0,1e-08]
[1756863580938,13.6475149,4294.1,4294.0,1e-08]
[1756863581142,17.5895149,4294.1,4294.0,1e-08]
[1756863581539,17.2839149,4294.1,4294.0,1e-08]
[1756863582757,13.3419149,4294.1,4294.0,1e-08]
[1756863583059,13.3419149,4294.1,4294.0,0.29790001]
[1756863583060,17.2839149,4294.1,4294.0,0.29790001]
[1756863584472,9.38857669,4294.1,4294.0,1.22010001]
[1756863585555,9.69417669,4294.1,4294.0,1e-08]
[1756863585726,10.05779487,4294.1,4294.0,0.29790001]
[1756863585928,5.44657669,4294.1,4294.0,0.29790001]
[1756863586123,9.38857669,4294.1,4294.0,0.29790001]
[1756863587130,5.44657669,4294.1,4294.0,0.29790001]
[1756863587336,2.32977669,4294.1,4294.0,1.22010001]
[1756863587531,6.27177669,4294.1,4294.0,1.22010001]
[1756863587752,6.27177669,4294.1,4294.0,0.77290001]
[1756863587948,6.27177669,4294.1,4294.0,1.22010001]
[1756863588344,6.27177669,4294.1,4294.0,0.77290001]
[1756863588549,9.27177669,4294.1,4294.0,0.29790001]
[1756863588766,9.61649234,4294.1,4294.0,1e-08]
[1756863588960,9.94099487,4294.1,4294.0,1e-08]
[1756863590666,10.24659487,4294.1,4294.0,1e-08]
[1756863591372,9.92209234,4294.1,4294.0,1e-08]
[1756863591538,5.32977669,4294.1,4294.0,0.29790001]
[1756863591738,9.27177669,4294.1,4294.0,0.77290001]
[1756863592168,9.27177669,4294.1,4294.0,0.29790001]
[1756863592572,9.27177669,4294.1,4294.0,0.77290001]
[1756863593371,9.27177669,4294.1,4294.0,0.29790001]
[1756863593573,9.27177669,4294.1,4294.0,1e-08]
[1756863593771,9.27177669,4294.1,4294.0,0.29790001]
[1756863595884,9.27177669,4294.1,4294.0,1e-08]
[1756863596779,5.32977669,4294.1,4294.0,0.29790001]
[1756863596977,9.27077669,4294.1,4294.0,0.29790001]
[1756863597356,9.57637669,4294.1,4294.0,1e-08]
[1756863597565,9.27077669,4294.1,4294.0,0.29790001]
[1756863598448,9.27077669,4294.1,4294.0,0.77290001]
[1756863599247,9.27077669,4294.1,4294.0,1e-08]
[1756863599248,11.35645381,4294.1,4294.0,1e-08]
[1756863599445,11.81285381,4294.1,4294.0,1e-08]
[1756863600286,12.60485381,4294.1,4294.0,1e-08]
[1756863602260,12.14845381,4294.1,4294.0,1e-08]
[1756863602470,12.94956946,4294.1,4294.0,1e-08]
[1756863602680,9.27077669,4294.1,4294.0,0.30750001]
[1756863603493,5.32977669,4294.1,4294.0,0.78820001]
[1756863603695,9.27077669,4294.1,4294.0,1e-08]
[1756863603895,9.56427669,4294.1,4294.0,1e-08]
[1756863604589,9.27077669,4294.1,4294.0,1e-08]
[1756863605158,9.56427669,4294.1,4294.0,1e-08]
[1756863605389,10.14611776,4294.1,4294.0,1e-08]
[1756863605595,6.20511776,4294.1,4294.0,1e-08]
[1756863605903,10.60151776,4294.1,4294.0,1e-08]
[1756863606062,11.39713341,4294.1,4294.0,1e-08]
[1756863606659,10.94623341,4294.1,4294.0,1e-08]
[1756863607071,18.59813704,4294.1,4294.0,1e-08]
[1756863607587,20.04409055,4294.1,4294.0,1e-08]
[1756863612697,19.59319055,4294.1,4294.0,1e-08]
[1756863613297,15.65319055,4294.1,4294.0,1e-08]
[1756863613605,19.59319055,4294.1,4294.0,1e-08]
[1756863613971,14.11129055,4294.1,4294.0,0.30750001]
[1756863614167,16.82366072,4294.1,4294.0,0.78820001]
[1756863615383,2.44657669,4294.1,4294.0,1.22560001]
[1756863615582,6.38657669,4294.1,4294.0,1.22560001]
[1756863615882,9.38657669,4294.1,4294.0,1.22560001]
[1756863616497,9.38657669,4294.1,4294.0,0.78820001]
[1756863618488,9.38657669,4294.1,4294.0,1.22560001]
[1756863621417,9.38657669,4294.1,4294.0,0.30750001]
[1756863621814,9.38557669,4294.1,4294.0,0.30750001]
[1756863624932,9.38557669,4294.1,4294.0,0.78820001]
[1756863626226,5.44657669,4294.1,4294.0,0.78820001]
[1756863626429,9.38557669,4294.1,4294.0,0.78820001]
[1756863627494,5.44657669,4294.1,4294.0,0.78820001]
[1756863627695,9.38557669,4294.1,4294.0,0.78820001]
[1756863628402,5.44657669,4294.1,4294.0,0.78820001]
[1756863628728,9.38557669,4294.1,4294.0,1.22560001]
[1756863629616,5.44657669,4294.1,4294.0,1.22560001]
[1756863629820,9.38557669,4294.1,4294.0,1.22560001]
[1756863631730,9.38557669,4294.1,4294.0,0.78820001]
[1756863631932,9.38557669,4294.1,4294.0,0.30750001]
[1756863635134,9.38557669,4294.1,4294.0,0.77520001]
[1756863636036,5.44657669,4294.1,4294.0,0.77520001]
[1756863636328,9.38457669,4294.1,4294.0,1.21440001]
[1756863636530,5.44657669,4294.1,4294.0,1.21440001]
[1756863636705,9.38457669,4294.1,4294.0,0.77520001]
[1756863636909,9.38457669,4294.1,4294.0,1.21440001]
[1756863637821,9.38457669,4294.1,4294.0,0.77520001]
[1756863638225,0.001,4294.1,4294.0,1.21440001]
[1756863638427,0.001,4294.1,4294.0,1.33784001]
[1756863638610,0.001,4294.1,4294.0,1.45464001]
[1756863642141,0.001,4294.1,4294.0,3.78347093]
[1756863642344,0.001,4294.1,4294.0,3.80675923]
[1756863642841,0.001,4294.1,4294.0,4.57547093]
[1756863644143,0.001,4294.1,4294.0,8.51247093]
[1756863645543,0.001,4294.1,4294.0,11.51247093]
[1756863648824,0.001,4294.1,4294.0,6.78347093]
[1756863649052,0.001,4294.1,4294.0,1.01544001]
[1756863649220,0.001,4294.1,4294.0,7.71947093]
[1756863649971,0.001,4294.1,4294.0,4.95144001]
[1756863650149,0.001,4294.1,4294.0,0.11680001]
[1756863650150,0.3114,4294.1,4294.0,0.11680001]
[1756863651142,0.001,4294.1,4294.0,0.11680001]
[1756863651343,0.001,4294.1,4294.0,0.42700001]
[1756863652260,0.001,4294.1,4294.0,0.89470001]
[1756863652550,0.001,4294.1,4294.0,1.62200201]
[1756863653419,0.001,4294.1,4294.0,4.27323293]
[1756863653624,0.001,4294.1,4294.0,4.39003293]
[1756863654556,0.001,4294.1,4294.0,5.20532123]
[1756863654755,0.001,4294.1,4294.0,5.18203293]
[1756863656753,0.001,4294.1,4294.0,8.27534164]
[1756863660239,1e-08,4294.1,4294.0,8.27534164]
[1756863660663,1e-08,4294.6,4294.5,3.12055978]
[1756863660863,1e-08,4294.6,4294.5,19.70184955]
[1756863661069,1e-08,4294.6,4294.5,31.19676396]
[1756863661273,1e-08,4294.6,4294.5,32.2182433]
[1756863662080,1e-08,4294.6,4294.5,32.1014433]
[1756863662380,1e-08,4294.6,4294.5,20.41095927]
[1756863662561,1e-08,4294.6,4294.5,23.05995927]
[1756863663056,0.29130001,4294.6,4294.5,5.39599949]
[1756863663259,0.29130001,4294.6,4294.5,11.65855927]
[1756863664379,1e-08,4294.6,4294.5,11.65855927]
[1756863664694,1e-08,4294.6,4294.5,11.95995927]
[1756863665352,1e-08,4294.6,4294.5,13.68015927]
[1756863669001,1e-08,4294.6,4294.5,13.24395927]
[1756863669188,1e-08,4294.6,4294.5,13.67915927]
[1756863669563,1e-08,4294.6,4294.5,15.82574478]
[1756863669892,1e-08,4294.6,4294.5,12.75095927]
[1756863670399,0.29130001,4294.6,4294.5,8.51655927]
[1756863670574,0.29130001,4294.6,4294.5,12.44955927]
[1756863671898,0.29130001,4294.6,4294.5,8.51655927]
[1756863672097,0.72020001,4294.6,4294.5,4.72455927]
[1756863672296,0.72020001,4294.6,4294.5,8.65755927]
[1756863672871,0.72020001,4294.6,4294.5,4.72455927]
[1756863673199,1e-08,4294.6,4294.5,15.83054478]
[1756863673572,1e-08,4294.6,4294.5,16.26574478]
[1756863673782,1e-08,4294.6,4294.5,16.75874478]
[1756863673976,1e-08,4294.6,4294.5,19.75874478]
[1756863676312,1e-08,4294.6,4294.5,30.85874478]
[1756863676518,1e-08,4294.6,4294.5,30.86274478]
[1756863682892,0.001,4295.5,4295.4,2.32807189]
[1756863683221,0.001,4295.5,4295.4,15.08466459]
[1756863683519,0.001,4295.5,4295.4,16.5243324]
[1756863686821,0.2923,4295.5,4295.4,9.21514689]
[1756863687020,0.7212,4295.5,4295.4,9.21514689]
[1756863687187,1.1745,4295.5,4295.4,6.095075]
[1756863687386,1.1745,4295.5,4295.4,5.78306781]
[1756863688593,1.1745,4295.5,4295.4,8.1111397]
[1756863689819,0.2923,4295.5,4295.4,8.1111397]
[1756863690600,0.7622,4295.5,4295.4,8.1111397]
[1756863691025,0.2923,4295.5,4295.4,8.1111397]
[1756863691327,0.2923,4295.5,4295.4,8.99806681]
[1756863692040,0.001,4295.5,4295.4,9.98626681]
[1756863692204,0.001,4295.5,4295.4,10.10306681]
[1756863692828,0.001,4295.5,4295.4,10.57506681]
[1756863694312,0.001,4295.5,4295.4,14.03986681]
[1756863696640,0.001,4295.5,4295.4,13.57506681]
[1756863696932,0.3012,4295.5,4295.4,12.79006681]
[1756863697437,1.2582,4295.5,4295.4,8.06606681]
[1756863697627,1.2582,4295.5,4295.4,11.1101397]
[1756863697823,1.2582,4295.5,4295.4,8.1101397]
[1756863698838,1.2582,4295.5,4295.4,4.1791397]
[1756863699040,1.2582,4295.5,4295.4,8.1101397]
[1756863700850,1.2582,4295.5,4295.4,5.6888]
[1756863702523,1.2582,4295.5,4295.4,1.7578]
[1756863702728,1.38602,4295.5,4295.4,5.6878]
[1756863702941,1.2582,4295.5,4295.4,5.6878]
[1756863703152,1.2582,4295.5,4295.4,1.7578]
[1756863703325,1.2582,4295.5,4295.4,5.6878]
[1756863703770,2.32810434,4295.4,4295.2,3.93]
[1756863704058,1.2572,4295.3,4295.2,4.0468]
[1756863704430,0.3002,4295.3,4295.2,0.1168]
[1756863704829,0.7701,4295.3,4295.2,0.1168]
[1756863705052,1.2572,4295.3,4295.2,0.1168]
[1756863705250,1.2572,4295.3,4295.2,4.0468]
[1756863706658,1.2572,4295.3,4295.2,0.1168]
[1756863706840,1.61582953,4295.3,4295.2,0.1168]
[1756863707563,3.94395562,4295.3,4295.2,0.1168]
[1756863708058,1.61582953,4295.3,4295.2,0.1168]
[1756863708758,1.2572,4295.3,4295.2,0.1168]
[1756863710752,1.2582,4295.3,4295.2,0.1168]
[1756863710958,3.58632609,4295.3,4295.2,0.1168]
[1756863711533,1.2582,4295.3,4295.2,0.1168]
[1756863712157,0.7711,4295.3,4295.2,0.1168]
[1756863712657,0.001,4295.3,4295.2,0.1168]
[1756863713180,0.001,4295.3,4295.2,0.1400818]
[1756863713674,0.001,4295.3,4295.2,0.785]
[1756863713877,0.001,4295.3,4295.2,2.49293855]
[1756863714446,0.001,4295.3,4295.2,2.02813855]
[1756863714755,0.001,4295.3,4295.2,4.35631884]
[1756863716185,0.001,4295.3,4295.2,2.02813855]
[1756863716688,0.001,4295.3,4295.2,1.55613855]
[1756863716982,0.3012,4295.3,4295.2,4.0468]
[1756863719052,0.7711,4295.3,4295.2,4.0468]
[1756863720168,1.2432,4295.3,4295.2,4.0468]
[1756863720348,0.7516,4295.3,4295.2,4.0468]
[1756863721063,1.2432,4295.3,4295.2,4.0468]
[1756863721275,0.7516,4295.3,4295.2,4.0468]
[1756863721796,0.3012,4295.3,4295.2,4.0468]
[1756863722151,0.001,4295.3,4295.2,4.3466]
[1756863722496,0.001,4295.3,4295.2,4.8144]
[1756863722845,0.001,4295.3,4295.2,4.3466]
[1756863723451,0.001,4295.3,4295.2,4.8376818]
[1756863723675,0.001,4295.3,4295.2,4.8144]
[1756863723902,0.001,4295.3,4295.2,7.14258029]
[1756863725049,0.001,4295.3,4295.2,7.57318029]
[1756863725256,0.001,4295.3,4295.2,13.6527658]
[1756863725458,0.001,4295.3,4295.2,14.4447658]
[1756863725675,0.001,4295.3,4295.2,23.52435131]
[1756863726692,0.001,4295.3,4295.2,19.59435131]
[1756863726874,0.001,4295.3,4295.2,23.52335131]
[1756863729465,0.001,4295.3,4295.2,34.62335131]
[1756863731502,0.001,4295.3,4295.2,29.88494917]
[1756863734693,0.001,4295.3,4295.2,25.52534917]
[1756863734887,0.001,4295.3,4295.2,28.98554917]
[1756863735281,0.001,4295.3,4295.2,29.45334917]
[1756863736668,0.3113,4295.3,4295.2,16.54498029]
[1756863736863,0.3113,4295.3,4295.2,9.37298029]
[1756863737067,0.3113,4295.3,4295.2,10.16498029]
[1756863738500,0.7617,4295.3,4295.2,10.16498029]
[1756863738706,1.2533,4295.3,4295.2,5.44498029]
[1756863739003,1.2533,4295.3,4295.2,4.0448]
[1756863739217,1.2533,4295.3,4295.2,0.1168]
[1756863739419,1.2533,4295.3,4295.2,4.0448]
[1756863739420,1.37873,4295.3,4295.2,4.0448]
[1756863740086,1.2533,4295.3,4295.2,4.0448]
[1756863740879,1.2533,4295.3,4295.2,0.1168]
[1756863741080,1.2533,4295.3,4295.2,4.0448]
[1756863741391,1.2533,4295.3,4295.2,0.1168]
[1756863745890,0.3113,4295.3,4295.2,0.1168]
[1756863746279,0.7617,4295.3,4295.2,0.1168]
[1756863747388,0.3113,4295.3,4295.2,0.1168]
[1756863748022,0.7617,4295.3,4295.2,0.1168]
[1756863749025,1.2533,4295.3,4295.2,4.0438]
[1756863749812,0.3113,4295.3,4295.2,4.0438]
[1756863750427,0.7435,4295.3,4295.2,4.0438]
[1756863750824,1.2349,4295.3,4295.2,0.1168]
[1756863751006,1.2349,4295.3,4295.2,4.0438]
[1756863751325,0.3113,4295.3,4295.2,4.0438]
[1756863751525,0.001,4295.3,4295.2,4.342]
[1756863751713,0.001,4295.3,4295.2,5.24120823]
[1756863751913,0.001,4295.3,4295.2,7.56938852]
[1756863752124,0.001,4295.3,4295.2,7.07728852]
[1756863753940,0.001,4295.3,4295.2,6.77908852]
[1756863754122,0.3046,4295.3,4295.2,4.0438]
[1756863754735,0.7368,4295.3,4295.2,4.0438]
[1756863754911,1.2282,4295.3,4295.2,0.1168]
[1756863755551,0.796,4295.3,4295.2,0.1168]
[1756863755752,1.2282,4295.3,4295.2,0.1168]
[1756863757679,0.7368,4295.3,4295.2,0.1168]
[1756863758375,0.3046,4295.3,4295.2,0.1168]
[1756863758552,1.2282,4295.3,4295.2,0.1168]
[1756863759780,0.3036,4295.3,4295.2,0.1168]
[1756863764907,0.3046,4295.3,4295.2,0.1168]
[1756863768851,0.001,4295.3,4295.2,3.67778029]
[1756863769003,0.001,4295.3,4295.2,4.69709523]
[1756863769203,0.001,4295.3,4295.2,8.59981343]
[1756863771801,0.001,4295.3,4295.2,5.82913314]
[1756863772020,0.001,4295.3,4295.2,4.8331]
[1756863772232,0.001,4295.3,4295.2,0.1168]
[1756863772422,0.001,4295.3,4295.2,4.0428]
[1756863772738,0.1,4295.3,4295.2,4.0428]
[1756863773342,0.1,4295.3,4295.2,0.1168]
[1756863774940,0.001,4295.3,4295.2,0.1168]
[1756863777438,0.1025,4295.3,4295.2,0.1168]
[1756863777976,0.001,4295.3,4295.2,0.1168]
[1756863778640,0.001,4295.3,4295.2,0.415]
[1756863778844,0.001,4295.3,4295.2,0.9071]
[1756863779049,0.001,4295.3,4295.2,1.3496]
[1756863779748,0.001,4295.3,4295.2,0.415]
[1756863780546,0.001,4295.3,4295.2,0.1168]
[1756863780756,0.001,4295.3,4295.2,0.861]
[1756863780921,0.001,4295.3,4295.2,1.3427]
[1756863781124,0.001,4295.3,4295.2,0.861]
[1756863781640,0.001,4295.3,4295.2,0.1168]
[1756863782223,0.001,4295.3,4295.2,2.02827786]
[1756863782428,0.001,4295.3,4295.2,3.67088029]
[1756863782753,0.001,4295.3,4295.2,1.3427]
[1756863785659,0.001,4295.3,4295.2,3.67088029]
[1756863786223,0.001,4295.3,4295.2,3.69416209]
[1756863790064,0.001,4295.3,4295.2,7.48616209]
[1756863790232,0.001,4295.3,4295.2,7.55615898]